Cogmind - Beta 16.1 @@@ ROGUE MODE // 2026.02.12 @ 22:36:06 Player: Greg Result: Destroyed by as-34021 with Assembled Rifle Performance ------------- Evolutions (0) 0 Regions Visited (2) 400 Robots Destroyed (11) 55 Value Destroyed (296) 296 Prototype IDs (2) 40 Alien Tech Used (0) 0 Bonus (0) 0 TOTAL SCORE: 791 Bonus ------- None Cogmind --------- Core Integrity 0/250 Matter 278/300 Energy 123/125 System Corruption 0% Temperature Cool (0) Movement Walking (120) Location -10/Mines Parts ------- > --- POWER (1) -------- Light Ion Engine > --- PROPULSION (2) --- Aluminum Leg Aluminum Leg > --- UTILITY (2) ------ Improved Heat Sink Medium Storage Unit > --- WEAPON (2) ------- Small Laser > --- INVENTORY (10) --- Aluminum Leg Wheel Heat Sink Small Storage Unit Peak State ------------ > --- POWER ------------ Light Nuclear Core > --- PROPULSION ------- Aluminum Leg Aluminum Leg > --- UTILITY ---------- Improved Heat Sink Medium Storage Unit > --- WEAPON ----------- Light Assault Rifle Light Assault Rifle > --- INVENTORY -------- Light Ion Engine Aluminum Leg Aluminum Leg Wheel Heat Sink Small Storage Unit EM Pulse Gun Small Laser [Rating: 11] Favorites ----------- Power Light Nuclear Core Engine Light Ion Engine Power Core Light Nuclear Core Propulsion Aluminum Leg Leg Aluminum Leg Wheel Wheel Utility Medium Storage Unit Device Improved Heat Sink Storage Medium Storage Unit Weapon Light Assault Rifle Energy Gun EM Pulse Gun Ballistic Gun Light Assault Rifle Build | -11 -10 -10 ------- Run | Yrd Mat Min Slots Evolved . | . . . Power . | . . . Propulsion . | . . . Utility . | . . . Weapon . | . . . Parts Attached 17 | 5 7 5 Power 3 | 1 1 1 Engine 2 | 1 . 1 Core 1 | . 1 . Reactor . | . . . Propulsion 5 | 2 2 1 Treads . | . . . Leg 3 | . 2 1 Wheel 2 | 2 . . Hover . | . . . Flight . | . . . Utility 4 | . 4 . Device 2 | . 2 . Storage 2 | . 2 . Processor . | . . . Hackware . | . . . Protection . | . . . Artifact . | . . . Weapon 5 | 2 . 3 Energy Gun 3 | . . 3 Energy Cannon . | . . . Ballistic Gun 2 | 2 . . Ballistic Cannon . | . . . Launcher . | . . . Special Weapon . | . . . Impact Weapon . | . . . Slashing Weapon . | . . . Piercing Weapon . | . . . Special Melee Weapon . | . . . Unidentified Prototypes . | . . . Parts Lost 8 | . 2 6 Power 2 | . 1 1 Propulsion 2 | . 1 1 Utility . | . . . Weapon 4 | . . 4 Highest Loss Streak 5 | . 2 5 To Critical Strikes . | . . . Average Backups 6 | 1 6 8 Power . | . . . Propulsion 2 | . 2 2 Utility 1 | . 1 2 Weapon 1 | . 2 2 Tool/Special . | . . . Unused Backups 1 | . . 1 Power . | . . . Propulsion 1 | . . 1 Utility . | . . . Weapon . | . . . Tool/Special . | . . . Average Slot Usage (%) 93 | . 95 91 Engine 4 | . 6 . Core 9 | . 6 13 Leg 17 | . 11 27 Wheel 9 | . 15 . Device 13 | . 12 14 Storage 13 | . 13 14 Energy Gun 1 | . . 4 Ballistic Gun 23 | . 27 16 Peak Build Rating 11 | 5 11 11 Average Rating 8 | 4 8 10 On Entrance 5 | . 5 11 Avg Prop Armor Cover (%) . | . . . Naked Turns . | . . . Heaviest Build 19 | 5 18 19 Greatest Support 20 | 20 20 20 Greatest Overweight (x) 1 | . 1 . Average Overweight (x) . | . . . Largest Inventory Capacity 10 | 5 10 10 Average Capacity 9 | 5 9 10 Most Carried 9 | 5 8 9 Average Carried 6 | 1 6 8 Final Capacity 10 | 5 10 10 Final Carried 8 | 5 8 4 Class Distribution -------------------- 100% | Mutant Dominant Class ---------------- Mutant | -10/Materials Mutant | -10/Mines Resources | -11 -10 -10 ----------- Run | Yrd Mat Min Matter Collected 421 | 262 146 13 Remotely . | . . . Salvage Created 456 | 48 368 40 Parts 22 | 2 20 . Haulers Intercepted 1 | . 1 . Recyclers Shooed . | . . . Parts Field Recycled . | . . . Retrieved Matter . | . . . Parts Self-Destructed . | . . . Prevented . | . . . Parts Restored . | . . . Kills | -11 -10 -10 ------- Run | Yrd Mat Min Combat Hostiles Destroyed 12 | 1 9 2 Guns 12 | 1 9 2 Classes Destroyed 4 | 1 2 1 Hauler 1 | . 1 . Swarmer 3 | . 3 . Grunt 7 | 1 6 . Assembled 2 | . . 2 Best Kill Streak 7 | 1 7 2 Combat Bots Only 7 | 1 7 2 Max Kills in Single Turn 1 | 1 1 1 Gunslinging . | . . . Exploded . | . . . Melee . | . . . Uniques/NPCs Destroyed . | . . . Combat | -11 -10 -10 -------- Run | Yrd Mat Min Hostile Shots Fired 121 | 7 51 63 Missed 43 | 4 15 24 Hits 78 | 3 36 39 Projectile 78 | 3 36 39 AOE 1 | . . 1 Part Disruptions 4 | . . 4 Damage Taken 940 | 31 416 493 Core 253 | 10 131 112 Absorbed by Shields . | . . . Regen/Repaired (Parts) 7 | . 7 . Core Remaining (%) 96 | 96 . . Volleys Fired 61 | 6 42 13 Largest 2 | 2 2 2 Hottest 60 | 40 40 60 Shots Fired 116 | 12 84 20 Gun 116 | 12 84 20 Cannon . | . . . Launcher . | . . . Special . | . . . Kinetic 103 | 12 84 7 Thermal . | . . . Explosive . | . . . Electromagnetic 13 | . . 13 Robot Hit Streak 8 | 3 8 4 Robot Miss Streak 4 | 2 4 2 Penetration Max . | . . . Secondary Targets . | . . . Shots Hit Robots 73 | 6 54 13 Core Hits 31 | 3 23 5 Critical Kills . | . . . Critical Parts Destroyed . | . . . Critical Strikes . | . . . Melee Attacks . | . . . Impact . | . . . Slashing . | . . . Piercing . | . . . Sneak Attacks . | . . . Combat Hostiles . | . . . Follow-up Attacks . | . . . Damage Inflicted 658 | 54 446 158 Guns 658 | 54 446 158 Cannons . | . . . Explosions . | . . . Melee . | . . . Ramming . | . . . Kinetic 559 | 54 446 59 Thermal . | . . . Explosive . | . . . Electromagnetic 99 | . . 99 Impact . | . . . Slashing . | . . . Piercing . | . . . Highest Corruption . | . . . Average Corruption . | . . . Corruption Purged . | . . . Corruption Blocked . | . . . Overload Shots . | . . . Overflow Damage . | . . . Projectiles . | . . . Explosions . | . . . Melee . | . . . Knockbacks . | . . . Impact . | . . . Kinetic . | . . . Secondary . | . . . Self-Inflicted Damage . | . . . Shots . | . . . Rammed . | . . . Targets Rammed . | . . . Kicked . | . . . Crushed . | . . . Highest Temperature 104 | 6 1 104 Average Temperature 44 | 6 1 52 Received Heat Transfer 556 | 18 198 340 Siege Activations . | . . . Martial Activations . | . . . Shielding Activations . | . . . Robots Disrupted . | . . . Combat Hostiles . | . . . Robots Corrupted . | . . . Combat Hostiles . | . . . Parts Fried . | . . . Impact Corruptions . | . . . Robots Melted . | . . . Combat Hostiles . | . . . Parts Melted . | . . . Heat Transferred . | . . . Parts Sabotaged . | . . . Parts Stolen . | . . . Parts Stripped . | . . . Power Chain Reactions . | . . . Alert | -11 -10 -10 ------- Run | Yrd Mat Min Maximum Alert Level . | . . . Low Security (%) 100 | 100 100 100 Level 1 . | . . . Level 2 . | . . . Level 3 . | . . . Level 4 . | . . . Level 5 . | . . . High Security . | . . . Max Security . | . . . Peak Influence 145 | 20 145 49 Initial 49 | . 13 49 Average 34 | 2 59 11 Influence Increases 257 | 20 237 . Destroy 0b10 Robot/C 200 | 20 180 . Destroy 0b10 Robot/NC 5 | . 5 . Destroy Leader 32 | . 32 . Successful Hack 5 | . 5 . Lose Combat Pursuer 15 | . 15 . Influence Decreases 257 | . 130 127 Entered New Map 85 | . 7 78 Time Decay 142 | . 103 39 Lost Part 30 | . 20 10 Squads Dispatched . | . . . Investigation . | . . . Extermination . | . . . Reinforcement . | . . . Assault . | . . . Garrison . | . . . Intercept . | . . . Searches Triggered . | . . . Construction Impeded . | . . . Haulers Reinforced . | . . . Active Scanning Responses . | . . . Cargo Convoy Interrupts . | . . . Stealth | -11 -10 -10 --------- Run | Yrd Mat Min Distress Signals . | . . . Communications Jammed . | . . . Distress Signals . | . . . Times Spotted 24 | 1 10 13 Peak Tracking Total 6 | 1 4 6 Tactical Retreats 2 | . 1 1 Traps | -11 -10 -10 ------- Run | Yrd Mat Min Traps Triggered 1 | . 1 . Indirectly . | . . . Trap Hack Attempts . | . . . Triggered . | . . . Disarmed . | . . . Reprogrammed . | . . . Reused . | . . . Traps Extracted . | . . . Installed . | . . . Triggered . | . . . Machines | -11 -10 -10 ---------- Run | Yrd Mat Min Machines Disabled . | . . . Max in Single Turn . | . . . Machines Repaired . | . . . Machines Dismantled . | . . . Machines Sabotaged . | . . . Overloaded Fab Kills . | . . . Hacking | -11 -10 -10 --------- Run | Yrd Mat Min Machines Accessed 2 | . 2 . Terminals 1 | . 1 . Fabricators . | . . . Repair Stations 1 | . 1 . Recycling Units . | . . . Scanalyzers . | . . . Garrison Access . | . . . Total Hacks 8 | . 8 . Successful 6 | . 6 . Failed 2 | . 2 . Catastrophic . | . . . Database Lockouts . | . . . Manual . | . . . Terminals 6 | . 6 . Fabricators . | . . . Repair Stations 2 | . 2 . Recycling Units . | . . . Scanalyzers . | . . . Garrison Access . | . . . Terminal Hacks 4 | . 4 . Prototype ID Bank 1 | . 1 . Alert Level 1 | . 1 . Locate Traps 1 | . 1 . Transport Status 1 | . 1 . Fabricator Hacks . | . . . Repair Station Hacks 2 | . 2 . Scan Component 1 | . 1 . Repair 1 | . 1 . Recycling Unit Hacks . | . . . Scanalyzer . | . . . Garrison Access Hacks . | . . . Unauthorized Hacks . | . . . Terminals . | . . . Fabricators . | . . . Repair Stations . | . . . Recycling Units . | . . . Scanalyzers . | . . . Garrison Access . | . . . Data Cores Recovered . | . . . Used . | . . . Hacking Detections 1 | . 1 . Full Trace Events . | . . . Feedback Events . | . . . Feedback Blocked . | . . . Robot Schematics Acquired . | . . . Robots Built . | . . . Authchips . | . . . Time . | . . . Total Robot Build Rating . | . . . Part Schematics Acquired . | . . . Parts Built . | . . . Authchips . | . . . Time . | . . . Total Part Build Rating . | . . . Part Studies Acquired . | . . . Parts Repaired 1 | . 1 . Time 26 | . 26 . Parts Recycled . | . . . Recycled Matter . | . . . Retrieved Matter . | . . . Retrieved Components . | . . . Parts Scanalyzed . | . . . Part Schematics Acquired . | . . . Parts Damaged . | . . . Bothacking | -11 -10 -10 ------------ Run | Yrd Mat Min Used RIF Installer . | . . . Robots Hacked . | . . . Non-combat . | . . . Combat . | . . . Robot Hacks Applied . | . . . Relay Couplers Released . | . . . Fabnet Peak Effective % . | . . . Robots Rewired . | . . . Allies Hacked . | . . . Hacks Repelled . | . . . Allies | -11 -10 -10 -------- Run | Yrd Mat Min Total Allies . | . . . Largest Group . | . . . Highest-Rated Group . | . . . Highest-Rated Ally . | . . . Total Orders . | . . . Ally Attacks . | . . . Total Damage . | . . . Kills . | . . . Allies Corrupted . | . . . Allies Melted . | . . . Intel | -11 -10 -10 ------- Run | Yrd Mat Min Active Infowar (turns) . | . . . Robot Analysis Total . | . . . Derelict Logs Recovered 1 | . . 1 Drone Launches . | . . . Drone Recoveries . | . . . Exploration | -11 -10 -10 ------------- Run | Yrd Mat Min Turns Passed 618 | 97 317 204 Spaces Moved 419 | 93 188 138 Core 18 | 18 . . Treads . | . . . Legs 206 | . 68 138 Wheels 195 | 75 120 . Hover . | . . . Flight . | . . . Fastest Speed 50 | 50 80 120 Average Speed 98 | 74 94 120 Slowest Speed 120 | 80 120 120 Overloaded Moves . | . . . Propulsion Burnouts . | . . . Robots Hopped . | . . . Potential Cave-ins . | . . . Cave-ins Triggered . | . . . Exploration Rate (%) 27 | 5 30 48 Regions Visited 2 Branch Regions 1 Pre-discovered Areas . | . . . Known Exits Taken . | . . . Unknown Exits Taken 2 | 1 1 . Scrap Searched 1 | . . 1 Spaces Dug . | . . . Terrain Destroyed . | . . . Melee . | . . . Projectile . | . . . AOE . | . . . Terrain Rammed . | . . . Walls Destroyed . | . . . Machines Disabled . | . . . Actions | -11 -10 -10 --------- Run | Yrd Mat Min Total 523 | 108 258 157 Wait 14 | . 14 . Move 417 | 92 187 138 Hop . | . . . Pick Up 9 | 5 3 1 Fast Attach 12 | 5 7 . Attach 5 | . . 5 Detach 2 | . 2 . Swap 1 | . 1 . Drop 2 | . 2 . Fire 61 | 6 42 13 Melee . | . . . Ram . | . . . Kick . | . . . Crush . | . . . Escape Stasis . | . . . Rewire . | . . . Trap . | . . . Miscellaneous . | . . . Route ------- -11/Scrapyard -10/Materials -10/Mines History --------- Turn | Location | Event 2 | -11/Scrapyard | Met Revision 17 70 | -11/Scrapyard | Discovered new exit (range 8) 98 | -11/Scrapyard | Entered Materials 151 | -10/Materials | Repaired Aluminum Leg 310 | -10/Materials | Destroyed 7 combat bots 329 | -10/Materials | Core integrity fell below 50% 331 | -10/Materials | Build established: Mutant 395 | -10/Materials | Discovered new exit (range 14) 415 | -10/Materials | Entered Mines 416 | -10/Mines | Assembled infested the area 421 | -10/Mines | Assisted by a Guerilla fighting off Assembled 558 | -10/Mines | Learned Materials terminal intel 602 | -10/Mines | Core integrity fell below 20% 619 | -10/Mines | Destroyed by as-34021 with Assembled Rifle Last Messages --------------- 00568_ K-01 Serf collects debris. 00572_ The unstable cave ceiling collapses. 00574_ K-01 Serf collects debris. 00577_ The unstable cave ceiling collapses. 00577_ K-01 Serf collects debris. 00585_ as-34021 misfires. 00587_ K-01 Serf collects debris. 00593_ Lgt. Assault Rifle destroyed. 00593_ as-83952 misfires. 00594_ EM Pulse Gun destroyed. 00596_ Aluminum Leg destroyed. 00597_ as-83952 destroyed. 00599_ as-18992 destroyed. 00605_ Lgt. Nuclear Core destroyed. 00605_ Destroyed Asb. F-torch. 00607_ EM Pulse Gun destroyed. 00608_ U-05 Engineer builds a Wall. 00612_ K-01 Serf collects debris. 00613_ U-05 Engineer builds a Wall. 00617_ U-05 Engineer lays Concrete. Map ----- +----------------------------------------------------+ | ???# ##?????????????????????????????????????? | | ????# #?????????????????????????????????????? | | ?????# #?????????????????????????????????????? | | ??????# ##????????????????????????????????????? | | ??????# ##???????????????????????????????????? | | #####?# #???????????????????????????????????? | | #?## #???????????????????????????????????? | | #### ##???????????????????????????????????? | | #????????????????????????????????????? | | ! #????????????????????????????????????? | | ###### ##????????????????????????????????????? | | #????####?????????????????????????????????????? | | ##?????????????????????????????????????????????? | | ##??????????????????????????????????????????????? | | ##??????????????????????????????????????????????? | | ##????????????????#????????????????????????????? | | ##???????????????#%#??????????????????????????? | | #?????????????###=#??????????????????????????? | | #??????????#### #!!##????????????????????????? | | ##??####??## # # %#???????????????????????? | | #### ######### a # ##????????%?????????????? | | # # #??????? ?????????????? | | ## !% #?????? ?????????????? | | ?##### # # # #%* #????? #?????????????? | | ?????## ] ### #### # =ak##### #??????????????? | | ??????### !##?# #?# @%a!%| #???????????????? | | ????????####??# #?# # aaa= #???????????????? | | ??????###?????# #???# % ## ##???????????????? | | ?????## ###### #???## |% ;########?????????????? | | ?????# ##???# % == %/% #?????????????? | | ?????# #???# !%*%! ########??????? | | ?????# ##???# ;###### #??????? | | ????## ##????## ####?# #??????? | | ##### ##??????## #?#### #### #??????? | | ##????????## #???# #???????????? | | ##??????????## #???# #???????????? | | ### #????####????# #???# #???????????? | | ???### #???## ##???## ##???# #???????????? | | ?????## #??## #????#####?#### #???????????? | | ??????# ##??# #??????????# #???????????? | | ?????## #???# ##?????????# ####???????????? | | ?????# ##???# ###???????# #??????????????? | | ?????# ##### ######### #??????????????? | | ?????# ## #??????????????? | | ?????## ############??????????????? | | #?????## ##?????????????????????????? | | ######## ##??????????????????????????? | | #### ## ##???????????????????????????? | | """ #?## #####????????????????????????????? | | """ ##?## ##???????????????????????????????? | +----------------------------------------------------+ Best States ------------- Heat Dissipation 39 Energy Generation 14 Energy Capacity 160 Matter Stores 300 Matter Capacity 300 Sight Range 16 Terrain Scan Density 10 Evasion (%) 55 Item Schematics ----------------- None Robot Schematics ------------------ None Fabricated ------------ Nothing Repaired ---------- Aluminum Leg | 92% | -10/Materials Studied --------- None Alien Tech Used ----------------- None Achievements -------------- None Challenges ------------ None Game ------ Seed ShrapnelDirtyPower Manual? 0 Play Time 00:10:30 Cumulative 2.7 hours Start 2026.02.12 @ 22:25:13 End 2026.02.12 @ 22:36:06 Sessions 1 Manual Loads 0 Difficulty Rogue Special Mode None Game No. 4 Rogue 4 Adventurer 0 Explorer 0 Win Type - Total 0 Types 0/0/0/0/0/0/0/0/0/0 Lore% 3 Gallery% 6 Achievement% 7 Wizard Run 0 Options --------- Layout 0 ASCII 0 Keyboard 1 Movement Numpad Keybinds 0 Fullscreen 1 Font 24/Tamsyn Map View 76x50 Zoom Use 0% Tactical HUD 1 Map Filters NONE Filters NONE Steam 1 RUN: e1608d8a-8334-4d4a-9594-938307d81508